fUST/lending_fUST_20250511
["ID","MTS","AMOUNT","RATE_DAILY","PERIOD"]
[360617900,1746905446462,-400.0,8.219e-05,2]
[360617902,1746905446471,-1243.82,8.219e-05,2]
[360617904,1746905446483,-434.12,8.219e-05,2]
[360617906,1746905446492,-704.91,8.219e-05,2]
[360617908,1746905446501,-721.96,8.219e-05,2]
[360617910,1746905446511,-1326.17,8.219e-05,2]
[360617912,1746905446520,-182.75714285,8.219e-05,2]
[360617914,1746905446529,-1675.25,8.219e-05,2]
[360617916,1746905446538,-861.34,8.219e-05,2]
[360617918,1746905446547,-400.0,8.219e-05,2]
[360617920,1746905446557,-2153.68,8.219e-05,2]
[360617922,1746905446566,-1844.23,8.219e-05,2]
[360617924,1746905446575,-400.0,8.219e-05,2]
[360617926,1746905446584,-1003.78,8.219e-05,2]
[360617928,1746905446593,-497.12,8.219e-05,2]
[360617930,1746905446602,-1662.76,8.219e-05,2]
[360617932,1746905446611,-400.0,8.219e-05,2]
[360617934,1746905446620,-418.83,8.219e-05,2]
[360617936,1746905446630,-400.0,8.219e-05,2]
[360617938,1746905446639,-400.0,8.219e-05,2]
[360617940,1746905446648,-400.0,8.219e-05,2]
[360617942,1746905446657,-400.0,8.219e-05,2]
[360617944,1746905446667,-2774.08,8.219e-05,2]
[360617946,1746905446676,-486.49,8.219e-05,2]
[360617948,1746905446685,-903.76,8.219e-05,2]
[360617951,1746905446694,-400.0,8.219e-05,2]
[360617953,1746905446704,-4358.85,8.219e-05,2]
[360617955,1746905446713,-1984.1,8.219e-05,2]
[360617957,1746905446722,-400.0,8.219e-05,2]
[360617960,1746905446734,-488.14,8.219e-05,2]
[360617962,1746905446743,-400.0,8.219e-05,2]
[360617964,1746905446752,-400.0,8.219e-05,2]
[360617966,1746905446762,-400.0,8.219e-05,2]
[360617968,1746905446772,-400.0,8.219e-05,2]
[360617970,1746905446781,-400.0,8.219e-05,2]
[360617972,1746905446790,-400.0,8.219e-05,2]
[360617974,1746905446800,-5046.24,8.219e-05,2]
[360617976,1746905446809,-558.56,8.219e-05,2]
[360617977,1746905446819,-2137.62,8.219e-05,2]
[360617980,1746905446829,-400.0,8.219e-05,2]
[360617982,1746905446838,-418.05,8.219e-05,2]
[360617984,1746905446848,-539.05,8.219e-05,2]
[360617985,1746905446857,-400.0,8.219e-05,2]
[360617988,1746905446867,-400.0,8.219e-05,2]
[360617990,1746905446876,-408.96,8.219e-05,2]
[360617992,1746905446886,-400.0,8.219e-05,2]
[360617994,1746905446895,-400.0,8.219e-05,2]
[360617996,1746905446906,-400.0,8.219e-05,2]
[360617997,1746905446915,-897.02,8.219e-05,2]
[360617998,1746905446925,-8862.95,8.219e-05,2]
[360617999,1746905446934,-2187.45,8.219e-05,2]
[360618000,1746905446944,-400.0,8.219e-05,2]
[360618001,1746905446953,-803.02,8.219e-05,2]
[360618002,1746905446962,-400.0,8.219e-05,2]
[360618003,1746905446971,-769.94,8.219e-05,2]
[360618004,1746905446987,-1389.9,8.219e-05,2]
[360618005,1746905446996,-1382.27,8.219e-05,2]
[360618006,1746905447006,-671.71,8.219e-05,2]
[360618007,1746905447016,-464.48,8.219e-05,2]
[360618008,1746905447028,-400.0,8.219e-05,2]
[360618009,1746905447039,-4204.94,8.219e-05,2]
[360618010,1746905447048,-453.89,8.219e-05,2]
[360618011,1746905447058,-400.0,8.219e-05,2]
[360618012,1746905447067,-400.0,8.219e-05,2]
[360618013,1746905447078,-400.0,8.219e-05,2]
[360618014,1746905447089,-400.0,8.219e-05,2]
[360618016,1746905447099,-1362.95,8.219e-05,2]
[360618018,1746905447111,-9249.49,8.219e-05,2]
[360618019,1746905447123,-7019.46,8.219e-05,2]
[360618021,1746905447134,-400.0,8.219e-05,2]
[360618023,1746905447145,-400.0,8.219e-05,2]
[360618025,1746905447156,-400.0,8.219e-05,2]
[360618027,1746905447166,-523.81,8.219e-05,2]
[360618029,1746905447177,-1173.01,8.219e-05,2]
[360618031,1746905447192,-2053.78,8.219e-05,2]
[360618033,1746905447205,-400.0,8.219e-05,2]
[360618035,1746905447216,-1050.5,8.219e-05,2]
[360618037,1746905447233,-400.0,8.219e-05,2]
[360618039,1746905447245,-2647.92,8.219e-05,2]
[360618041,1746905447255,-400.0,8.219e-05,2]
[360618043,1746905447266,-400.0,8.219e-05,2]
[360618045,1746905447281,-4118.51,8.219e-05,2]
[360618047,1746905447290,-400.0,8.219e-05,2]
[360618049,1746905447300,-494.61,8.219e-05,2]
[360618051,1746905447309,-400.0,8.219e-05,2]
[360618053,1746905447319,-400.0,8.219e-05,2]
[360618055,1746905447328,-2294.88,8.219e-05,2]
[360618057,1746905447338,-1534.26,8.219e-05,2]
[360618059,1746905447347,-400.0,8.219e-05,2]
[360618061,1746905447357,-400.0,8.219e-05,2]
[360618063,1746905447367,-3007.43,8.219e-05,2]
[360618065,1746905447379,-904.19,8.219e-05,2]
[360618067,1746905447388,-400.0,8.219e-05,2]
[360618069,1746905447398,-470.62,8.219e-05,2]
[360618071,1746905447408,-5806.88,8.219e-05,2]
[360618073,1746905447417,-400.0,8.219e-05,2]
[360618075,1746905447427,-4476.84,8.219e-05,2]
[360618077,1746905447436,-400.0,8.219e-05,2]
[360618079,1746905447447,-400.0,8.219e-05,2]
[360618081,1746905447457,-400.0,8.219e-05,2]
[360618083,1746905447466,-1430.58,8.219e-05,2]
[360618085,1746905447477,-4613.52,8.219e-05,2]
[360618087,1746905447486,-509.02,8.219e-05,2]
[360618089,1746905447496,-874.92,8.219e-05,2]
[360618091,1746905447505,-430.29,8.219e-05,2]
[360618093,1746905447515,-1255.91,8.219e-05,2]
[360618095,1746905447524,-400.0,8.219e-05,2]
[360618097,1746905447534,-400.0,8.219e-05,2]
[360618099,1746905447543,-991.13,8.219e-05,2]
[360618101,1746905447552,-2936.28,8.219e-05,2]
[360618103,1746905447561,-400.0,8.219e-05,2]
[360618105,1746905447571,-400.0,8.219e-05,2]
[360618107,1746905447579,-788.28,8.219e-05,2]
[360618109,1746905447589,-400.0,8.219e-05,2]
[360618110,1746905447598,-1048.85,8.219e-05,2]
[360618113,1746905447607,-3078.27,8.219e-05,2]
[360618114,1746905447617,-8055.98,8.219e-05,2]
[360618116,1746905447626,-400.0,8.219e-05,2]
[360618118,1746905447635,-400.0,8.219e-05,2]
[360618120,1746905447645,-400.0,8.219e-05,2]
[360618122,1746905447654,-1102.47,8.219e-05,2]
[360618124,1746905447663,-477.9,8.219e-05,2]
[360618126,1746905447672,-466.2,8.219e-05,2]
[360618128,1746905447682,-945.39,8.219e-05,2]
[360618130,1746905447691,-400.0,8.219e-05,2]
[360618132,1746905447699,-820.32,8.219e-05,2]
[360618134,1746905447708,-2941.67,8.219e-05,2]
[360618136,1746905447719,-3973.67,8.219e-05,2]
[360618138,1746905447729,-1104.55,8.219e-05,2]
[360618140,1746905447739,-400.0,8.219e-05,2]
[360618142,1746905447748,-2331.24,8.219e-05,2]
[360618144,1746905447757,-400.0,8.219e-05,2]
[360618146,1746905447767,-802.28,8.219e-05,2]
[360618148,1746905447776,-400.0,8.219e-05,2]
[360618150,1746905447785,-400.0,8.219e-05,2]
[360618152,1746905447795,-2428.77,8.219e-05,2]
[360618154,1746905447804,-400.0,8.219e-05,2]
[360618156,1746905447814,-151.0,8.219e-05,2]
[360618158,1746905447823,-174.90150421,8.25e-05,2]
[360618160,1746905447832,-546.0,8.303e-05,2]
[360618162,1746905447841,-404.0,8.303e-05,2]
[360618164,1746905447850,-662.2300319,8.369e-05,2]
[360618166,1746905447859,-310.08691503,8.393e-05,2]
[360618168,1746905447868,-500.0,8.393e-05,2]
[360618170,1746905447878,-637.80866703,8.393e-05,2]
[360618172,1746905447887,-500.0,8.393e-05,2]
[360618174,1746905447896,-500.0,8.393e-05,2]
[360618176,1746905447905,-500.0,8.393e-05,2]
[360618178,1746905447915,-500.0,8.393e-05,2]
[360618180,1746905447923,-500.0,8.393e-05,2]
[360618182,1746905447932,-500.0,8.393e-05,2]
[360618184,1746905447941,-500.0,8.393e-05,2]
[360618186,1746905447953,-500.0,8.393e-05,2]
[360618188,1746905447962,-500.0,8.393e-05,2]
[360618190,1746905447971,-500.0,8.393e-05,2]
[360618192,1746905447983,-500.0,8.393e-05,2]
[360618194,1746905447991,-500.0,8.393e-05,2]
[360618196,1746905448000,-500.0,8.393e-05,2]
[360618198,1746905448009,-500.0,8.393e-05,2]
[360618200,1746905448019,-500.0,8.393e-05,2]
[360618202,1746905448028,-500.0,8.393e-05,2]
[360618204,1746905448037,-500.0,8.393e-05,2]
[360618206,1746905448046,-500.0,8.393e-05,2]
[360618208,1746905448056,-500.0,8.393e-05,2]
[360618210,1746905448065,-500.0,8.393e-05,2]
[360618212,1746905448075,-500.0,8.393e-05,2]
[360618214,1746905448084,-500.0,8.393e-05,2]
[360618216,1746905448093,-500.0,8.393e-05,2]
[360618218,1746905448103,-500.0,8.393e-05,2]
[360618220,1746905448113,-500.0,8.393e-05,2]
[360618222,1746905448123,-500.328,8.399e-05,2]
[360618224,1746905448132,-500.0,8.411e-05,2]
[360618226,1746905448141,-500.0,8.411e-05,2]
[360618228,1746905448150,-151.0,8.411e-05,2]
[360618230,1746905448160,-500.0,8.411e-05,2]
[360618232,1746905448169,-1106238.53284071,8.412e-05,2]
[360618429,1746905590218,176.912909,7.456e-05,2]
[360618439,1746905857119,-300.0,8.215e-05,2]
[360618440,1746905857143,-233.11249012,8.216e-05,2]
[360618441,1746905857168,-336.89980198,8.216e-05,2]
[360618442,1746905857192,-500.0,8.216e-05,2]
[360618443,1746905857216,-500.0,8.216e-05,2]
[360618444,1746905857240,-500.0,8.216e-05,2]
[360618445,1746905857263,-613.7364083,8.216e-05,2]
[360618446,1746905857288,-500.0,8.216e-05,2]
[360618447,1746905857315,-500.0,8.216e-05,2]
[360618448,1746905857339,-500.0,8.216e-05,2]
[360618449,1746905857362,-500.0,8.216e-05,2]
[360618450,1746905857388,-500.0,8.216e-05,2]
[360618451,1746905857412,-500.0,8.216e-05,2]
[360618452,1746905857436,-500.0,8.216e-05,2]
[360618453,1746905857460,-500.0,8.216e-05,2]
[360618454,1746905857484,-160.0,8.219e-05,2]
[360618455,1746905857507,-160.0,8.219e-05,2]
[360618456,1746905857533,-842.34118046,8.219e-05,2]
[360618457,1746905857557,-160.0,8.219e-05,2]
[360618458,1746905857580,-400.0,8.219e-05,2]
[360618459,1746905857604,-1548.15,8.219e-05,2]
[360618460,1746905857626,-400.0,8.219e-05,2]
[360618461,1746905857650,-607.91,8.219e-05,2]
[360618462,1746905857673,-400.0,8.219e-05,2]
[360618463,1746905857698,-1039.69,8.219e-05,2]
[360618464,1746905857721,-400.0,8.219e-05,2]
[360618465,1746905857745,-728.47,8.219e-05,2]
[360618466,1746905857768,-550.88,8.219e-05,2]
[360618467,1746905857792,-400.0,8.219e-05,2]
[360618468,1746905857815,-400.0,8.219e-05,2]
[360618469,1746905857838,-2209.92,8.219e-05,2]
[360618470,1746905857860,-400.0,8.219e-05,2]
[360618471,1746905857884,-400.0,8.219e-05,2]
[360618472,1746905857908,-400.0,8.219e-05,2]
[360618473,1746905857932,-489.52206122,8.219e-05,2]
[360618474,1746905857956,-871.35,8.219e-05,2]
[360618475,1746905857980,-400.0,8.219e-05,2]
[360618476,1746905858004,-698.61,8.219e-05,2]
[360618477,1746905858027,-400.0,8.219e-05,2]
[360618478,1746905858051,-400.0,8.219e-05,2]
[360618479,1746905858074,-400.0,8.219e-05,2]
[360618480,1746905858097,-400.0,8.219e-05,2]
[360618481,1746905858122,-588.71,8.219e-05,2]
[360618482,1746905858146,-400.0,8.219e-05,2]
[360618483,1746905858170,-400.0,8.219e-05,2]
[360618484,1746905858193,-394.98611137,8.219e-05,2]
[360618485,1746905858218,-400.0,8.219e-05,2]
[360618486,1746905858243,-400.0,8.219e-05,2]
[360618487,1746905858267,-400.0,8.219e-05,2]
[360618488,1746905858294,-400.0,8.219e-05,2]
[360618489,1746905858320,-400.0,8.219e-05,2]
[360618490,1746905858348,-929.82,8.219e-05,2]
[360618491,1746905858373,-852.65,8.219e-05,2]
[360618492,1746905858398,-400.0,8.219e-05,2]
[360618493,1746905858422,-435.16,8.219e-05,2]
[360618494,1746905858446,-400.0,8.219e-05,2]
[360618495,1746905858471,-400.0,8.219e-05,2]
[360618496,1746905858494,-400.0,8.219e-05,2]
[360618497,1746905858519,-788.17,8.219e-05,2]
[360618498,1746905858544,-400.0,8.219e-05,2]
[360618499,1746905858570,-434.98,8.219e-05,2]
[360618500,1746905858594,-400.0,8.219e-05,2]
[360618501,1746905858618,-560.39,8.219e-05,2]
[360618502,1746905858642,-400.0,8.219e-05,2]
[360618503,1746905858665,-400.0,8.219e-05,2]
[360618504,1746905858690,-400.0,8.219e-05,2]
[360618505,1746905858714,-400.0,8.219e-05,2]
[360618506,1746905858738,-8864.09,8.219e-05,2]
[360618507,1746905858761,-527.75,8.219e-05,2]
[360618508,1746905858789,-763.4,8.219e-05,2]
[360618509,1746905858812,-400.0,8.219e-05,2]
[360618510,1746905858836,-794.63,8.219e-05,2]
[360618511,1746905858860,-1124.13,8.219e-05,2]
[360618512,1746905859056,-400.0,8.219e-05,2]
[360618513,1746905859091,-400.0,8.219e-05,2]
[360618514,1746905859115,-400.0,8.219e-05,2]
[360618515,1746905859138,-2537.59,8.219e-05,2]
[360618516,1746905859161,-400.0,8.219e-05,2]
[360618517,1746905859185,-400.0,8.219e-05,2]
[360618518,1746905859210,-458.81,8.219e-05,2]
[360618519,1746905859235,-2199.26,8.219e-05,2]
[360618520,1746905859258,-400.0,8.219e-05,2]
[360618521,1746905859281,-400.0,8.219e-05,2]
[360618522,1746905859307,-3946.9,8.219e-05,2]
[360618523,1746905859332,-423.35,8.219e-05,2]
[360618524,1746905859358,-400.0,8.219e-05,2]
[360618525,1746905859384,-2882.12,8.219e-05,2]
[360618526,1746905859409,-1245.95,8.219e-05,2]
[360618527,1746905859432,-400.0,8.219e-05,2]
[360618528,1746905859456,-545.32,8.219e-05,2]
[360618529,1746905859480,-400.0,8.219e-05,2]
[360618530,1746905859504,-866.51,8.219e-05,2]
[360618531,1746905859527,-400.0,8.219e-05,2]
[360618532,1746905859550,-400.0,8.219e-05,2]
[360618533,1746905859572,-400.0,8.219e-05,2]
[360618534,1746905859595,-1347.33,8.219e-05,2]
[360618535,1746905859618,-501.98,8.219e-05,2]
[360618536,1746905859642,-1470.33,8.219e-05,2]
[360618537,1746905859666,-1370.98,8.219e-05,2]
[360618538,1746905859690,-400.0,8.219e-05,2]
[360618539,1746905859714,-558.61,8.219e-05,2]
[360618540,1746905859738,-400.0,8.219e-05,2]
[360618541,1746905859762,-400.0,8.219e-05,2]
[360618542,1746905859787,-400.0,8.219e-05,2]
[360618543,1746905859812,-4421.29,8.219e-05,2]
[360618544,1746905859836,-475.6,8.219e-05,2]
[360618545,1746905859861,-4290.31,8.219e-05,2]
[360618546,1746905859885,-400.0,8.219e-05,2]
[360618547,1746905859908,-4666.38,8.219e-05,2]
[360618548,1746905859931,-423.38009659,8.219e-05,2]
[360618549,1746905859955,-9049.07,8.219e-05,2]
[360618550,1746905859979,-404.94623664,8.219e-05,2]
[360618551,1746905860006,-400.0,8.219e-05,2]
[360618552,1746905860028,-400.0,8.219e-05,2]
[360618553,1746905860053,-400.0,8.219e-05,2]
[360618554,1746905860077,-786.14,8.219e-05,2]
[360618555,1746905860100,-400.0,8.219e-05,2]
[360618556,1746905860125,-509.02,8.219e-05,2]
[360618557,1746905860153,-2813.94,8.219e-05,2]
[360618558,1746905860178,-1905.61,8.219e-05,2]
[360618559,1746905860201,-486.35,8.219e-05,2]
[360618560,1746905860225,-2950.01,8.219e-05,2]
[360618561,1746905860249,-881.39,8.219e-05,2]
[360618562,1746905860273,-2234.11,8.219e-05,2]
[360618563,1746905860296,-2327.57,8.219e-05,2]
[360618564,1746905860322,-400.0,8.219e-05,2]
[360618565,1746905860348,-400.0,8.219e-05,2]
[360618566,1746905860373,-400.0,8.219e-05,2]
[360618567,1746905860397,-1312.11,8.219e-05,2]
[360618568,1746905860420,-1200.05,8.219e-05,2]
[360618569,1746905860444,-450.42,8.219e-05,2]
[360618570,1746905860469,-8236.09,8.219e-05,2]
[360618571,1746905860495,-1444.48,8.219e-05,2]
[360618572,1746905860520,-3808.1,8.219e-05,2]
[360618573,1746905860550,-2819.1,8.219e-05,2]
[360618574,1746905860573,-440.39,8.219e-05,2]
[360618575,1746905860596,-2565.53,8.219e-05,2]
[360618576,1746905860619,-755.7,8.219e-05,2]
[360618577,1746905860643,-2462.45,8.219e-05,2]
[360618578,1746905860666,-969.42,8.219e-05,2]
[360618579,1746905860690,-3401.03,8.219e-05,2]
[360618580,1746905860713,-997.46,8.219e-05,2]
[360618581,1746905860737,-1058.53,8.219e-05,2]
[360618582,1746905860761,-400.0,8.219e-05,2]
[360618583,1746905860785,-400.0,8.219e-05,2]
[360618584,1746905860809,-1270.91,8.219e-05,2]
[360618585,1746905860833,-1266.15,8.219e-05,2]
[360618586,1746905860856,-400.0,8.219e-05,2]
[360618587,1746905860880,-1394.19,8.219e-05,2]
[360618588,1746905860904,-400.0,8.219e-05,2]
[360618589,1746905860927,-400.0,8.219e-05,2]
[360618590,1746905860951,-453.29,8.219e-05,2]
[360618591,1746905860975,-2063.95,8.219e-05,2]
[360618592,1746905860998,-1124.0,8.219e-05,2]
[360618593,1746905861021,-457.42,8.219e-05,2]
[360618594,1746905861043,-525.79,8.219e-05,2]
[360618595,1746905861065,-250.51090661,8.219e-05,2]
[360618596,1746905861089,-1470.35,8.219e-05,2]
[360618597,1746905861113,-400.0,8.219e-05,2]
[360618598,1746905861135,-400.0,8.219e-05,2]
[360618599,1746905861159,-476.4,8.219e-05,2]
[360618600,1746905861182,-996.04,8.219e-05,2]
[360618601,1746905861204,-400.0,8.219e-05,2]
[360618602,1746905861231,-400.0,8.219e-05,2]
[360618603,1746905861255,-675.54,8.219e-05,2]
[360618604,1746905861278,-400.0,8.219e-05,2]
[360618605,1746905861305,-400.0,8.219e-05,2]
[360618606,1746905861329,-400.0,8.219e-05,2]
[360618607,1746905861353,-1547.42,8.219e-05,2]
[360618608,1746905861379,-866.11,8.219e-05,2]
[360618609,1746905861403,-400.0,8.219e-05,2]
[360618610,1746905861428,-1605.45,8.219e-05,2]
[360618611,1746905861451,-198.49839917,8.219e-05,2]
[360618612,1746905861475,-400.0,8.219e-05,2]
[360618613,1746905861500,-2032.89,8.219e-05,2]
[360618614,1746905861523,-400.0,8.219e-05,2]
[360618615,1746905861547,-400.0,8.219e-05,2]
[360618616,1746905861572,-1767.39,8.219e-05,2]
[360618617,1746905861597,-400.0,8.219e-05,2]
[360618618,1746905861622,-400.0,8.219e-05,2]
[360618619,1746905861646,-961.96,8.219e-05,2]
[360618620,1746905861669,-434.68,8.219e-05,2]
[360618621,1746905861695,-400.0,8.219e-05,2]
[360618622,1746905861721,-863.12,8.219e-05,2]
[360618623,1746905861745,-400.0,8.219e-05,2]
[360618624,1746905861768,-405.6,8.219e-05,2]
[360618625,1746905861791,-400.0,8.219e-05,2]
[360618626,1746905861815,-2101.81,8.219e-05,2]
[360618627,1746905861840,-400.0,8.219e-05,2]
[360618628,1746905862016,-400.0,8.219e-05,2]
[360618629,1746905862041,-784.95,8.219e-05,2]
[360618630,1746905862067,-1500.38,8.219e-05,2]
[360618631,1746905862092,-571.22,8.219e-05,2]
[360618632,1746905862118,-4484.71,8.219e-05,2]
[360618633,1746905862143,-400.0,8.219e-05,2]
[360618634,1746905862167,-524.37,8.219e-05,2]
[360618635,1746905862192,-2096.3,8.219e-05,2]
[360618636,1746905862216,-400.0,8.219e-05,2]
[360618637,1746905862241,-975.18,8.219e-05,2]
[360618638,1746905862265,-691.35,8.219e-05,2]
[360618639,1746905862289,-769.57,8.219e-05,2]
[360618640,1746905862315,-1901.43,8.219e-05,2]
[360618641,1746905862340,-400.0,8.219e-05,2]
[360618642,1746905862365,-400.0,8.219e-05,2]
[360618643,1746905862391,-466.22,8.219e-05,2]
[360618644,1746905862416,-1324.68,8.219e-05,2]
[360618645,1746905862440,-170.58369148,8.219e-05,2]
[360618646,1746905862467,-400.0,8.219e-05,2]
[360618647,1746905862493,-608.49,8.219e-05,2]
[360618648,1746905862519,-4835.98,8.219e-05,2]
[360618649,1746905862542,-732.12,8.219e-05,2]
[360618650,1746905862566,-400.0,8.219e-05,2]
[360618651,1746905862591,-400.0,8.219e-05,2]
[360618652,1746905862617,-4029.73,8.219e-05,2]
[360618653,1746905862642,-445.13,8.219e-05,2]
[360618654,1746905862671,-985.13,8.219e-05,2]
[360618655,1746905862697,-6726.99,8.219e-05,2]
[360618656,1746905862723,-400.0,8.219e-05,2]
[360618657,1746905862748,-1306.16,8.219e-05,2]
[360618658,1746905862773,-400.0,8.219e-05,2]
[360618659,1746905862798,-400.0,8.219e-05,2]
[360618660,1746905862822,-513.74977482,8.219e-05,2]
[360618661,1746905862849,-8493.66,8.219e-05,2]
[360618662,1746905862874,-400.0,8.219e-05,2]
[360618663,1746905862898,-737.86,8.219e-05,2]
[360618664,1746905862923,-1006.73,8.219e-05,2]
[360618665,1746905862946,-400.0,8.219e-05,2]
[360618666,1746905862970,-478.83,8.219e-05,2]
[360618667,1746905862994,-903.43,8.219e-05,2]
[360618668,1746905863018,-400.0,8.219e-05,2]
[360618669,1746905863042,-708.0,8.303e-05,2]
[360618670,1746905863065,-2239.0,8.303e-05,2]
[360618671,1746905863089,-404.0,8.322e-05,2]
[360618672,1746905863113,-529.7840255,8.369e-05,2]
[360618673,1746905863137,-167.66770101,8.393e-05,2]
[360618674,1746905863162,-500.0,8.393e-05,2]
[360618675,1746905863185,-184.86439987,8.393e-05,2]
[360618676,1746905863209,-381.59797861,8.393e-05,2]
[360618677,1746905863233,-500.0,8.393e-05,2]
[360618678,1746905863256,-500.0,8.393e-05,2]
[360618679,1746905863279,-500.0,8.393e-05,2]
[360618680,1746905863305,-500.0,8.393e-05,2]
[360618681,1746905863328,-500.0,8.393e-05,2]
[360618682,1746905863353,-500.0,8.393e-05,2]
[360618683,1746905863377,-500.0,8.393e-05,2]
[360618684,1746905863400,-500.0,8.393e-05,2]
[360618685,1746905863422,-500.0,8.393e-05,2]
[360618686,1746905863445,-509.6932751,8.393e-05,2]
[360618687,1746905863475,-500.0,8.393e-05,2]
[360618688,1746905863499,-500.0,8.393e-05,2]
[360618689,1746905863524,-207.4,8.407e-05,2]
[360618690,1746905863546,-151.0,8.407e-05,2]
[360618691,1746905863572,-1831665.92634082,8.412e-05,2]
[360618693,1746905866360,2472.1083032,7.397e-05,2]
[360618694,1746905866646,-400.0,8.219e-05,2]
[360618695,1746905866673,-246967.88453885,8.412e-05,2]
[360618696,1746905867102,832.17,8.219e-05,2]
[360618697,1746905867778,400.0,8.219e-05,2]
[360618698,1746905867812,400.0,8.219e-05,2]
[360618699,1746905869727,400.0,8.219e-05,2]
[360618700,1746905873370,4111.55,8.219e-05,2]
[360618701,1746905876467,-8672.02,8.219e-05,2]
[360618702,1746905876493,-400.0,8.412e-05,2]
[360618703,1746905876517,-400.0,8.427e-05,2]
[360618704,1746905876542,-500.0,8.438e-05,2]
[360618705,1746905876566,-500.0,8.438e-05,2]
[360618706,1746905876589,-151.0,8.438e-05,2]
[360618707,1746905876613,-500.0,8.466e-05,2]
[360618708,1746905876637,-500.0,8.466e-05,2]
[360618709,1746905876662,-207.6205979,8.466e-05,2]
[360618710,1746905876689,-313.7311665,8.47e-05,2]
[360618711,1746905876714,-353.1335507,8.47e-05,2]
[360618712,1746905876738,-191.69472193,8.493e-05,2]
[360618713,1746905876762,-400.0,8.493e-05,2]
[360618714,1746905876785,-400.0,8.493e-05,2]
[360618715,1746905876809,-400.0,8.493e-05,2]
[360618716,1746905876834,-400.0,8.493e-05,2]
[360618717,1746905876858,-231.45809603,8.493e-05,2]
[360618718,1746905876881,-524.03195947,8.493e-05,2]
[360618719,1746905876905,-806.78,8.493e-05,2]
[360618720,1746905876929,-899.78,8.493e-05,2]
[360618721,1746905876954,-400.0,8.493e-05,2]
[360618722,1746905876979,-400.0,8.493e-05,2]
[360618723,1746905877004,-400.0,8.493e-05,2]
[360618724,1746905877028,-400.0,8.493e-05,2]
[360618725,1746905877053,-1075.6,8.493e-05,2]
[360618726,1746905877076,-400.0,8.493e-05,2]
[360618727,1746905877099,-400.0,8.493e-05,2]
[360618728,1746905877335,-406.52,8.493e-05,2]
[360618729,1746905877362,-400.0,8.493e-05,2]
[360618730,1746905877386,-400.0,8.493e-05,2]
[360618731,1746905877410,-400.0,8.493e-05,2]
[360618732,1746905877434,-400.0,8.493e-05,2]
[360618733,1746905877459,-400.0,8.493e-05,2]
[360618734,1746905877484,-400.0,8.493e-05,2]
[360618735,1746905877508,-400.0,8.493e-05,2]
[360618736,1746905877533,-658.05,8.493e-05,2]
[360618737,1746905877558,-400.0,8.493e-05,2]
[360618738,1746905877583,-570.42,8.493e-05,2]
[360618739,1746905877606,-400.0,8.493e-05,2]
[360618740,1746905877631,-400.0,8.493e-05,2]
[360618741,1746905877656,-400.0,8.493e-05,2]
[360618742,1746905877680,-400.0,8.493e-05,2]
[360618743,1746905877704,-400.0,8.493e-05,2]
[360618744,1746905877728,-400.0,8.493e-05,2]
[360618745,1746905877751,-528.25,8.493e-05,2]
[360618746,1746905877774,-613.1,8.493e-05,2]
[360618747,1746905877797,-400.0,8.493e-05,2]
[360618748,1746905877822,-806.38,8.493e-05,2]
[360618749,1746905877845,-400.0,8.493e-05,2]
[360618750,1746905877868,-1120.28,8.493e-05,2]
[360618751,1746905877892,-765.1,8.493e-05,2]
[360618752,1746905877916,-400.0,8.493e-05,2]
[360618753,1746905877943,-400.0,8.493e-05,2]
[360618754,1746905877966,-2206.06,8.493e-05,2]
[360618755,1746905877990,-266.18413382,8.493e-05,2]
[360618756,1746905878014,-534.37,8.493e-05,2]
[360618757,1746905878037,-400.0,8.493e-05,2]
[360618758,1746905878059,-400.0,8.493e-05,2]
[360618759,1746905878082,-1243.82,8.493e-05,2]
[360618760,1746905878106,-721.96,8.493e-05,2]
[360618761,1746905878129,-861.34,8.493e-05,2]
[360618762,1746905878152,-400.0,8.493e-05,2]